bitfinex-derivatives/quotes_BTCF0:USTF0_20240814
["timestamp","ask_amount","ask_price","bid_price","bid_amount"]
[1723669315090,0.00014512,59095.0,59094.0,1.279273]
[1723669315982,0.00014512,59095.0,59094.0,1.164273]
[1723669316582,0.00014512,59095.0,59094.0,1.167273]
[1723669316790,0.00014512,59095.0,59094.0,1.539073]
[1723669317189,0.00014512,59095.0,59094.0,1.536073]
[1723669317394,0.00014512,59095.0,59094.0,1.549073]
[1723669319389,0.00014512,59095.0,59094.0,1.55910119]
[1723669319798,0.00014512,59095.0,59094.0,1.54610119]
[1723669319999,0.00014512,59095.0,59094.0,1.55910119]
[1723669320388,0.00014512,59095.0,59094.0,1.60962483]
[1723669320897,0.00014512,59095.0,59094.0,1.24882483]
[1723669321397,0.00014512,59095.0,59094.0,1.55910119]
[1723669321593,0.00014512,59095.0,59094.0,1.19830119]
[1723669321800,0.00014512,59095.0,59094.0,1.55910119]
[1723669322699,0.00014512,59095.0,59094.0,1.19830119]
[1723669323194,0.00014512,59095.0,59094.0,1.55910119]
[1723669323401,0.00025377,59103.0,59102.0,0.084581]
[1723669323589,0.084566,59113.0,59111.0,0.084568]
[1723669323786,0.084566,59113.0,59112.0,0.3608]
[1723669324102,0.6999715,59113.0,59112.0,0.15]
[1723669324292,0.70009619,59113.0,59112.0,0.15]
[1723669324490,0.75052313,59113.0,59112.0,0.15]
[1723669325009,0.70009619,59113.0,59112.0,0.15]
[1723669325301,0.75051882,59113.0,59112.0,0.15]
[1723669325892,0.38971882,59113.0,59112.0,0.15]
[1723669326287,0.33929619,59113.0,59112.0,0.15]
[1723669326492,0.33929619,59113.0,59112.0,0.234567]
[1723669326796,0.33929619,59113.0,59112.0,0.235567]
[1723669327001,0.34229619,59113.0,59112.0,0.235567]
[1723669327196,0.39771882,59113.0,59112.0,0.236567]
[1723669327392,0.34729619,59113.0,59112.0,0.236567]
[1723669330202,0.34729619,59113.0,59112.0,0.152]
[1723669330392,0.46119619,59113.0,59112.0,0.152]
[1723669331706,1.05328219,59113.0,59112.0,0.152]
[1723669331908,0.169146,59108.0,59107.0,0.00025377]
[1723669332207,1.07755753,59108.0,59107.0,0.00025377]
[1723669332601,1.13115753,59108.0,59107.0,0.00025377]
[1723669333198,0.77035753,59108.0,59107.0,0.00025377]
[1723669333402,1.18352474,59108.0,59107.0,0.00025377]
[1723669333606,1.18352474,59108.0,59107.0,0.16025377]
[1723669333804,1.18552474,59108.0,59107.0,0.16025377]
[1723669334592,1.18352474,59108.0,59107.0,0.16025377]
[1723669334797,1.18852474,59108.0,59107.0,0.16025377]
[1723669335398,1.13815753,59108.0,59107.0,0.16025377]
[1723669335903,1.14115753,59108.0,59107.0,0.16025377]
[1723669337004,0.78035753,59108.0,59107.0,0.16025377]
[1723669337200,1.13615753,59108.0,59107.0,0.16025377]
[1723669337396,0.77935753,59108.0,59107.0,0.16025377]
[1723669337600,1.14015753,59108.0,59107.0,0.16025377]
[1723669338001,1.13615753,59108.0,59107.0,0.16025377]
[1723669338308,0.78035753,59108.0,59107.0,0.16025377]
[1723669338510,0.84761595,59108.0,59107.0,0.16025377]
[1723669339105,1.20841595,59108.0,59107.0,0.16025377]
[1723669339313,1.14115753,59108.0,59107.0,0.16025377]
[1723669339506,0.78035753,59108.0,59107.0,0.16025377]
[1723669340020,1.14115753,59108.0,59107.0,0.16025377]
[1723669340208,1.15134773,59108.0,59107.0,0.16025377]
[1723669340408,1.23542076,59108.0,59107.0,0.16025377]
[1723669341404,1.17476584,59108.0,59107.0,0.16025377]
[1723669341611,0.81796584,59108.0,59107.0,0.16125377]
[1723669341806,1.53956584,59108.0,59107.0,0.16125377]
[1723669342514,1.64045347,59108.0,59107.0,0.16125377]
[1723669342806,0.91885347,59108.0,59107.0,0.16125377]
[1723669343013,1.64045347,59108.0,59107.0,0.16125377]
[1723669344103,1.63445347,59108.0,59107.0,0.16125377]
[1723669344308,1.64045347,59108.0,59107.0,0.16125377]
[1723669344818,0.91885347,59108.0,59107.0,0.16125377]
[1723669345422,1.64045347,59108.0,59107.0,0.16125377]
[1723669346015,1.36416584,59108.0,59107.0,0.16125377]
[1723669346814,1.24716584,59108.0,59107.0,0.16125377]
[1723669347017,1.4653133,59108.0,59107.0,0.16125377]
[1723669347721,0.7437133,59108.0,59107.0,0.16125377]
[1723669348015,1.4573133,59108.0,59107.0,0.16025377]
[1723669348221,1.4603133,59108.0,59107.0,0.16025377]
[1723669349621,1.4623133,59108.0,59107.0,0.16025377]
[1723669350818,1.4633133,59108.0,59107.0,0.16025377]
[1723669351321,1.4593133,59108.0,59107.0,0.16025377]
[1723669351523,1.4633133,59108.0,59107.0,0.16025377]
[1723669352124,1.4097133,59108.0,59107.0,0.16025377]
[1723669352422,1.40971328,59108.0,59107.0,0.16025377]
[1723669352822,1.40871328,59108.0,59107.0,0.16025377]
[1723669353722,1.40971328,59108.0,59107.0,0.16025377]
[1723669355723,1.41071328,59108.0,59107.0,0.16025377]
[1723669356422,1.30456582,59108.0,59107.0,0.16025377]
[1723669356625,1.30856582,59108.0,59107.0,0.16025377]
[1723669356820,1.28114773,59108.0,59107.0,0.16025377]
[1723669357027,1.30856581,59108.0,59107.0,0.16025377]
[1723669357523,1.30456581,59108.0,59107.0,0.16025377]
[1723669357722,1.30856581,59108.0,59107.0,0.16025377]
[1723669358323,1.10699281,59108.0,59107.0,0.16025377]
[1723669358529,1.10699281,59108.0,59107.0,0.24482777]
[1723669359032,1.16394606,59108.0,59107.0,0.24482777]
[1723669359325,1.15994606,59108.0,59107.0,0.24482777]
[1723669359529,1.16494606,59108.0,59107.0,0.24482777]
[1723669360115,1.07557473,59108.0,59107.0,0.24482777]
[1723669360324,0.44036201,59108.0,59107.0,0.24482777]
[1723669360630,0.80116201,59108.0,59107.0,0.24482777]
[1723669360935,0.80016201,59108.0,59107.0,0.24482777]
[1723669361127,0.74319011,59108.0,59107.0,0.24482777]
[1723669361427,0.74319017,59108.0,59107.0,0.24482777]
[1723669361831,0.38239017,59108.0,59107.0,0.24482777]
[1723669362029,0.74319017,59108.0,59107.0,0.24482777]
[1723669366125,0.7431901,59108.0,59107.0,0.24482777]
[1723669367419,0.8277631,59108.0,59107.0,0.16025377]
[1723669367824,0.92899853,59108.0,59107.0,0.16025377]
[1723669368229,0.8277631,59108.0,59107.0,0.16025377]
[1723669368731,0.92899853,59108.0,59107.0,0.16025377]
[1723669369327,0.8277631,59108.0,59107.0,0.16025377]
[1723669369932,0.92899853,59108.0,59107.0,0.16025377]
[1723669370533,0.8277631,59108.0,59107.0,0.16025377]
[1723669373236,0.4669631,59108.0,59107.0,0.16025377]
[1723669373441,0.8277631,59108.0,59107.0,0.16025377]
[1723669376143,0.4669631,59108.0,59107.0,0.16025377]
[1723669376344,0.8277631,59108.0,59107.0,0.16025377]
[1723669376645,0.4669631,59108.0,59107.0,0.16025377]
[1723669376938,0.8277631,59108.0,59107.0,0.16025377]
[1723669377538,0.92899853,59108.0,59107.0,0.16025377]
[1723669377842,0.8277631,59108.0,59107.0,0.16025377]
[1723669378340,0.92899853,59108.0,59107.0,0.16025377]
[1723669378735,0.8277631,59108.0,59107.0,0.16025377]
[1723669379342,0.92899853,59108.0,59107.0,0.16025377]
[1723669379646,0.8277631,59108.0,59107.0,0.16025377]
[1723669379844,0.80034773,59108.0,59107.0,0.16025377]
[1723669380047,0.827764,59108.0,59107.0,0.16025377]
[1723669380342,0.92899943,59108.0,59107.0,0.16025377]
[1723669380735,0.827764,59108.0,59107.0,0.16025377]
[1723669380934,0.75985343,59108.0,59107.0,0.16025377]
[1723669381137,0.34465511,59108.0,59107.0,0.36182777]
[1723669381346,0.26021153,59108.0,59107.0,0.42917744]
[1723669381544,0.26021153,59108.0,59107.0,0.36182777]
[1723669381739,0.31087275,59108.0,59107.0,0.62495465]
[1723669381940,0.06754627,59112.0,59107.0,1.54234854]
[1723669382142,0.05810068,59115.0,59111.0,0.4778]
[1723669382344,0.00025377,59118.0,59117.0,0.08456]
[1723669382643,0.00025377,59118.0,59117.0,1.25160187]
[1723669382839,0.00025377,59118.0,59117.0,2.15908187]
[1723669383038,0.00032328,59118.0,59117.0,2.15908187]
[1723669383239,0.00032328,59118.0,59117.0,2.08669546]
[1723669383444,0.00032328,59118.0,59117.0,2.30005564]
[1723669383647,0.00032328,59118.0,59117.0,2.44736155]
[1723669383849,0.00032328,59118.0,59117.0,2.53823297]
[1723669384237,0.00032328,59118.0,59117.0,1.999]
[1723669384833,0.00132328,59118.0,59117.0,2.0]
[1723669385038,0.00132328,59118.0,59117.0,2.008]
[1723669385246,0.00032328,59118.0,59117.0,2.007]
[1723669385437,0.00032328,59118.0,59117.0,2.015]
[1723669386454,0.00032328,59118.0,59117.0,2.09220406]
[1723669386951,0.00032328,59118.0,59117.0,2.45300406]
[1723669387447,0.00032328,59118.0,59117.0,2.38567389]
[1723669391353,0.00032328,59118.0,59117.0,2.43610282]
[1723669393349,0.00032328,59118.0,59117.0,2.38567389]
[1723669395644,0.00032328,59118.0,59117.0,2.44487389]
[1723669397446,0.00032328,59118.0,59117.0,2.06811389]
[1723669397657,0.00032328,59118.0,59117.0,0.5268]
[1723669397658,0.08488128,59118.0,59117.0,0.5268]
[1723669397852,0.08488128,59118.0,59117.0,0.61136]
[1723669398058,0.00032328,59118.0,59117.0,1.2034]
[1723669398349,0.00032328,59118.0,59117.0,0.61136]
[1723669398552,0.00032328,59118.0,59117.0,1.11884]
[1723669401847,0.00032328,59118.0,59117.0,1.17634]
[1723669402046,0.00032328,59118.0,59117.0,1.28454965]
[1723669402660,0.00032328,59118.0,59117.0,0.77706965]
[1723669403453,0.00032328,59118.0,59117.0,0.76997347]
[1723669403758,0.08488128,59118.0,59117.0,0.176]
[1723669404653,0.14218128,59118.0,59117.0,0.176]
[1723669405647,0.14218128,59118.0,59117.0,0.166]
[1723669405850,0.25908128,59118.0,59117.0,0.166]
[1723669406154,0.2690035,59118.0,59117.0,0.166]
[1723669407059,0.88386731,59118.0,59117.0,0.166]
[1723669408858,0.88386731,59118.0,59110.0,0.05040382]
[1723669408859,0.169136,59111.0,59110.0,0.05040382]
[1723669409062,0.084573,59108.0,59107.0,0.00025377]
[1723669409252,0.201473,59108.0,59107.0,0.00025377]
[1723669409452,0.45403699,59108.0,59107.0,0.00025377]
[1723669409852,0.53860999,59108.0,59107.0,0.00025377]
[1723669412059,0.77250999,59108.0,59107.0,0.00025377]
[1723669412263,0.77450999,59108.0,59107.0,0.00025377]
[1723669413257,0.39753699,59108.0,59107.0,0.00025377]
[1723669413453,0.39753699,59108.0,59107.0,0.15025377]
[1723669414063,0.40770462,59108.0,59107.0,0.15025377]
[1723669414651,0.40770462,59108.0,59107.0,0.15225377]
[1723669415055,0.40770462,59108.0,59107.0,0.15025377]
[1723669415264,0.40770462,59108.0,59107.0,0.15225377]
[1723669415964,0.40770462,59108.0,59107.0,0.15025377]
[1723669416266,0.40670462,59108.0,59107.0,0.15025377]
[1723669417463,0.76750462,59108.0,59107.0,0.15025377]
[1723669417954,0.76950462,59108.0,59107.0,0.15025377]
[1723669418359,0.76850462,59108.0,59107.0,0.15025377]
[1723669418560,0.76650462,59108.0,59107.0,0.15425377]
[1723669419159,0.76950462,59108.0,59107.0,0.15025377]
[1723669419365,1.88689162,59108.0,59090.0,0.084598]
[1723669419561,0.084596,59092.0,59091.0,0.09826384]
[1723669419758,0.084596,59092.0,59091.0,0.62906384]
[1723669421261,0.085596,59092.0,59091.0,0.64306384]
[1723669421463,0.085596,59092.0,59091.0,0.5448]
[1723669423272,0.002,59092.0,59091.0,0.643397]
[1723669424758,0.00025377,59097.0,59096.0,0.08459]
[1723669424971,0.3216,59104.0,59103.0,0.08458]
[1723669425269,6.951e-05,59107.0,59106.0,0.084576]
[1723669425469,0.3719996,59121.0,59106.0,0.732136]
[1723669425671,0.084554,59121.0,59114.0,0.084564]
[1723669425868,0.3608,59122.0,59120.0,0.084555]
[1723669426064,0.0581,59125.0,59120.0,0.234555]
[1723669426262,0.25332229,59121.0,59120.0,0.234555]
[1723669426659,0.25332229,59124.0,59120.0,0.234555]
[1723669426862,0.33787629,59122.0,59120.0,0.234555]
[1723669427062,0.084554,59122.0,59120.0,0.234555]
[1723669427571,0.2532549,59121.0,59120.0,0.234555]
[1723669428372,0.2532549,59121.0,59120.0,0.238555]
[1723669428767,0.2532549,59121.0,59120.0,0.236555]
[1723669428959,0.2532549,59121.0,59120.0,0.238555]
[1723669430058,0.36105377,59127.0,59126.0,0.084547]
[1723669430261,0.00025377,59127.0,59126.0,0.595347]
[1723669430464,0.25549099,59127.0,59126.0,0.595347]
[1723669431264,0.34003699,59127.0,59126.0,0.595347]
[1723669431463,0.34503699,59127.0,59126.0,0.595347]
[1723669432571,0.34503699,59127.0,59126.0,0.234547]
[1723669432572,0.34703699,59127.0,59126.0,0.234547]
[1723669432770,0.34703699,59127.0,59126.0,0.15]
[1723669433166,0.34203699,59127.0,59126.0,0.15]
[1723669433472,0.34503699,59127.0,59126.0,0.15]
[1723669441173,0.42958299,59127.0,59126.0,0.15]
[1723669451987,0.54648299,59127.0,59126.0,0.15]
[1723669452475,0.34503699,59127.0,59126.0,0.15]
[1723669452875,0.26049099,59127.0,59126.0,0.15]
[1723669453078,0.26049099,59127.0,59126.0,0.291947]
[1723669455293,0.34503699,59127.0,59126.0,0.291947]
[1723669455473,0.34503699,59127.0,59126.0,0.35952494]
[1723669455673,0.26049099,59127.0,59126.0,0.35952494]
[1723669456387,0.26049099,59127.0,59126.0,0.291947]
[1723669456686,0.26049099,59127.0,59126.0,0.35952993]
[1723669456879,0.26049099,59127.0,59126.0,0.291947]
[1723669458382,0.3277028,59127.0,59126.0,0.291947]
[1723669458585,0.3277028,59127.0,59126.0,0.35954315]
[1723669458983,0.26049099,59127.0,59126.0,0.291947]
[1723669459290,0.4122488,59127.0,59126.0,0.291947]
[1723669460282,0.34503699,59127.0,59126.0,0.35955375]
[1723669462781,0.34503699,59127.0,59126.0,0.21760675]
[1723669463091,0.42958299,59127.0,59126.0,0.15]
[1723669465590,0.42958299,59127.0,59126.0,0.20070967]
[1723669465591,0.51402657,59127.0,59126.0,0.20070967]
[1723669466292,0.51402657,59127.0,59126.0,0.15]
[1723669466882,0.51402657,59127.0,59126.0,0.20070967]
[1723669467093,0.51402657,59127.0,59126.0,0.15]
[1723669468085,0.42958299,59127.0,59126.0,0.20070967]
[1723669468486,0.51402657,59127.0,59126.0,0.20070967]
[1723669468696,0.42958299,59127.0,59126.0,0.20070967]
[1723669468996,0.51402657,59127.0,59126.0,0.20070967]
[1723669469391,0.51402657,59127.0,59126.0,0.2989261]
[1723669469392,0.42958299,59127.0,59126.0,0.2989261]
[1723669469586,0.42958299,59127.0,59126.0,0.29892588]
[1723669469792,0.42958299,59127.0,59126.0,0.24821621]
[1723669469793,0.34503699,59127.0,59126.0,0.24821621]
[1723669470592,0.42958299,59127.0,59126.0,0.24821621]
[1723669470795,0.42958299,59127.0,59126.0,0.29892151]
[1723669471183,0.42958299,59127.0,59126.0,0.29892069]
[1723669471892,0.42958299,59127.0,59126.0,0.24821539]
[1723669472298,0.42958299,59127.0,59126.0,0.29892065]
[1723669473896,0.54648299,59127.0,59126.0,0.29892065]
[1723669474099,0.54648299,59127.0,59126.0,0.24821539]
[1723669474300,0.54648299,59127.0,59126.0,0.29891905]
[1723669475196,0.54648299,59127.0,59126.0,0.29891945]
[1723669476599,0.54648299,59127.0,59126.0,0.24821579]
[1723669476600,0.63088299,59127.0,59126.0,0.24821579]
[1723669476905,0.54648299,59127.0,59126.0,0.29891945]
[1723669477298,0.63088299,59127.0,59126.0,0.24821579]
[1723669477999,0.54648299,59127.0,59126.0,0.24821579]
[1723669478207,0.63088299,59127.0,59126.0,0.24821579]
[1723669478506,0.54648299,59127.0,59126.0,0.24821579]
[1723669478799,0.54648299,59127.0,59126.0,0.29891945]
[1723669479103,0.63088299,59127.0,59126.0,0.24821579]
[1723669481894,0.54648299,59127.0,59126.0,0.24821579]
[1723669482097,0.54648299,59127.0,59126.0,0.2482193]
[1723669482495,0.63086754,59127.0,59126.0,0.2482193]
[1723669483298,0.54648299,59127.0,59126.0,0.2482193]
[1723669483699,0.6308689,59127.0,59126.0,0.2482193]
[1723669485099,0.54648299,59127.0,59126.0,0.2482193]
[1723669485302,0.57389042,59127.0,59126.0,0.2482193]
[1723669485706,0.57389042,59127.0,59126.0,0.24821877]
[1723669486008,0.93469042,59127.0,59126.0,0.24821877]
[1723669486894,0.90728299,59127.0,59126.0,0.24821877]
[1723669487299,0.9346902,59127.0,59126.0,0.24821877]
[1723669488703,0.99170004,59127.0,59126.0,0.24821877]
[1723669489095,0.99169995,59127.0,59126.0,0.24821877]
[1723669489406,0.90728299,59127.0,59126.0,0.29892064]
[1723669489613,0.93469012,59127.0,59126.0,0.24821698]
[1723669489910,0.93468997,59127.0,59126.0,0.24821698]
[1723669490115,0.90728299,59127.0,59126.0,0.24821698]
[1723669490309,0.90728299,59127.0,59126.0,0.29892064]
[1723669490511,0.93468996,59127.0,59126.0,0.29892064]
[1723669491408,0.9346895,59127.0,59126.0,0.29892064]
[1723669491607,0.99172397,59127.0,59126.0,0.24821698]
[1723669491813,0.99172397,59127.0,59126.0,0.29893776]
[1723669492112,0.63092397,59127.0,59126.0,0.29893776]
[1723669492414,0.63092397,59127.0,59126.0,0.24821698]
[1723669493005,0.54648299,59127.0,59126.0,0.29893805]
[1723669493204,0.57388985,59127.0,59126.0,0.29893927]
[1723669493403,0.54648299,59127.0,59126.0,0.29893927]
[1723669493614,0.63092926,59127.0,59126.0,0.24821437]
[1723669493798,0.63092926,59127.0,59126.0,0.24821391]
[1723669494614,0.63093038,59127.0,59126.0,0.24821391]
[1723669494914,0.6309315,59127.0,59126.0,0.24821391]
[1723669496007,0.34503699,59127.0,59126.0,0.33276091]
[1723669496217,0.34503699,59127.0,59126.0,0.51556766]
[1723669496712,0.46193699,59127.0,59126.0,0.51556766]
[1723669496908,0.5463855,59127.0,59126.0,0.24821391]
[1723669497211,0.5463855,59127.0,59126.0,0.24821571]
[1723669498417,0.46193699,59127.0,59126.0,0.2989397]
[1723669499213,0.46193699,59127.0,59126.0,0.24821615]
[1723669499619,0.90719102,59127.0,59126.0,0.24821615]
[1723669499919,0.82273699,59127.0,59126.0,0.24821615]
[1723669500119,0.85014365,59127.0,59126.0,0.29894031]
[1723669500416,1.92663565,59127.0,59123.0,0.06760675]
[1723669500715,0.1169,59125.0,59116.0,0.06760675]
[1723669500918,0.89072,59117.0,59116.0,0.0507352]
[1723669501115,0.89072,59117.0,59109.0,0.08450995]
[1723669501116,0.169132,59113.0,59112.0,0.0507352]
[1723669501317,0.61427685,59113.0,59112.0,0.16]
[1723669501508,0.69910446,59113.0,59112.0,0.2107352]
[1723669501816,0.33830446,59113.0,59112.0,0.16]
[1723669502217,0.40576488,59113.0,59112.0,0.16]
[1723669502618,0.33830446,59113.0,59112.0,0.16]
[1723669503714,0.3608,59117.0,59116.0,0.084561]
[1723669503715,0.06746042,59117.0,59116.0,0.084561]
[1723669504021,0.06746042,59117.0,59116.0,0.361461]
[1723669504022,0.30418614,59117.0,59116.0,0.361461]
[1723669504211,0.25357604,59117.0,59116.0,0.370461]
[1723669504613,0.0506101,59119.0,59118.0,0.084558]
[1723669504928,0.0506101,59120.0,59119.0,0.084557]
[1723669505219,0.0506101,59120.0,59119.0,0.40898111]
[1723669505417,0.30411584,59120.0,59119.0,0.40898111]
[1723669507624,0.30411584,59120.0,59119.0,0.41498111]
[1723669508317,0.30411584,59120.0,59119.0,0.42098111]
[1723669510924,0.25350574,59120.0,59119.0,0.353457]
[1723669511324,0.0506101,59125.0,59124.0,0.08455]
[1723669511527,0.0506101,59126.0,59125.0,0.084548]
[1723669511726,0.01017538,59127.0,59126.0,0.084547]
[1723669511933,0.13017538,59127.0,59126.0,0.29518639]
[1723669512124,0.46834207,59127.0,59126.0,0.29518639]
[1723669512523,0.37387446,59127.0,59126.0,0.244547]
[1723669512726,0.12025377,59127.0,59126.0,0.244547]
[1723669513435,0.12025377,59127.0,59126.0,0.25434958]
[1723669514433,0.12225377,59127.0,59126.0,0.25434958]
[1723669514823,0.12525377,59127.0,59126.0,0.25434958]
[1723669516428,0.12525377,59127.0,59126.0,0.244547]
[1723669523332,0.12525377,59127.0,59126.0,0.29514327]
[1723669527241,0.12525377,59127.0,59126.0,0.244547]
[1723669531332,0.12525377,59127.0,59126.0,0.29514327]
[1723669531533,0.12525377,59127.0,59126.0,0.244547]
[1723669533445,0.17582603,59127.0,59126.0,0.244547]
[1723669533640,0.12525377,59127.0,59126.0,0.244547]
[1723669533842,0.17582603,59127.0,59126.0,0.244547]
[1723669534242,0.12525377,59127.0,59126.0,0.244547]
[1723669536041,0.12525377,59127.0,59126.0,0.31201542]
[1723669536540,0.17590757,59127.0,59126.0,0.31201542]
[1723669536749,0.17590757,59127.0,59126.0,0.244547]
[1723669538145,0.12525377,59127.0,59126.0,0.244547]
[1723669540338,0.19268345,59127.0,59126.0,0.244547]
[1723669541548,0.12525377,59127.0,59126.0,0.244547]
[1723669541943,0.19285243,59127.0,59126.0,0.244547]
[1723669542342,0.12525377,59127.0,59126.0,0.244547]
[1723669542748,0.19285105,59127.0,59126.0,0.244547]
[1723669546452,0.12525377,59127.0,59126.0,0.244547]
[1723669547454,0.00525377,59127.0,59126.0,0.244547]
[1723669548158,0.08772377,59127.0,59126.0,0.244547]
[1723669548353,0.15530392,59127.0,59126.0,0.244547]
[1723669549156,0.08772377,59127.0,59126.0,0.244547]
[1723669551252,0.15530385,59127.0,59126.0,0.244547]
[1723669551861,0.15530328,59127.0,59126.0,0.244547]
[1723669552761,0.23985528,59127.0,59126.0,0.244547]
[1723669552953,0.23985528,59127.0,59126.0,0.16]
[1723669552954,1.55501806,59127.0,59126.0,0.16]
[1723669553162,1.65632018,59127.0,59126.0,0.16]
[1723669553458,0.084561,59121.0,59120.0,0.13529562]
[1723669553655,0.201461,59121.0,59120.0,0.29529562]
[1723669553861,0.201461,59121.0,59120.0,0.29526991]
[1723669554051,0.201461,59121.0,59120.0,0.244561]
[1723669554248,0.201461,59121.0,59120.0,0.29526991]
[1723669554454,0.201461,59121.0,59120.0,0.249561]
[1723669554649,0.26897086,59121.0,59120.0,0.30026991]
[1723669555059,0.38897086,59121.0,59120.0,0.30026991]
[1723669555259,0.37897086,59121.0,59120.0,0.30026991]
[1723669555454,0.311461,59121.0,59120.0,0.249561]
[1723669555657,0.311461,59121.0,59120.0,0.165]
[1723669555965,0.311461,59121.0,59120.0,0.169]
[1723669556148,0.37895447,59121.0,59120.0,0.169]
[1723669556658,0.311461,59121.0,59120.0,0.169]
[1723669557262,0.37894424,59121.0,59120.0,0.169]
[1723669557456,0.311461,59121.0,59120.0,0.169]
[1723669557859,0.37894454,59121.0,59120.0,0.169]
[1723669559159,0.311461,59121.0,59120.0,0.169]
[1723669559365,0.37894454,59121.0,59120.0,0.169]
[1723669559858,0.32157884,59121.0,59120.0,0.169]
[1723669561558,0.38906238,59121.0,59120.0,0.169]
[1723669561764,0.27906238,59121.0,59120.0,0.169]
[1723669562360,0.21157884,59121.0,59120.0,0.169]
[1723669563050,0.32157884,59121.0,59120.0,0.253562]
[1723669564258,0.21157884,59121.0,59120.0,0.253562]
[1723669565267,0.09467884,59121.0,59120.0,0.253562]
[1723669565660,0.06069406,59121.0,59120.0,0.30427091]
[1723669566262,0.0606924,59121.0,59120.0,0.30427091]
[1723669567062,0.0606924,59121.0,59120.0,0.253562]
[1723669568564,0.0606924,59121.0,59120.0,0.30427091]
[1723669569167,0.01011784,59121.0,59120.0,0.30427091]
[1723669569368,0.1169,59122.0,59121.0,0.084561]
[1723669569562,0.1169,59122.0,59121.0,0.224561]
[1723669569962,0.19301,59122.0,59121.0,0.224561]
[1723669570362,0.24358384,59122.0,59121.0,0.224561]
[1723669570676,0.24358384,59122.0,59121.0,0.230561]
[1723669571062,0.25355674,59122.0,59121.0,0.230561]
[1723669571264,0.2029829,59122.0,59121.0,0.230561]
[1723669571574,0.3875419,59122.0,59121.0,0.230561]
[1723669571760,0.45497651,59122.0,59121.0,0.230561]
[1723669571959,0.3875419,59122.0,59121.0,0.230561]
[1723669572164,0.45497671,59122.0,59121.0,0.230561]
[1723669572866,0.45497671,59122.0,59121.0,0.227561]
[1723669573172,0.35597552,59122.0,59121.0,0.224561]
[1723669573369,0.35697552,59122.0,59121.0,0.224561]
[1723669573562,0.35597552,59122.0,59121.0,0.224561]
[1723669573768,0.36197552,59122.0,59121.0,0.225561]
[1723669573973,0.44448552,59122.0,59121.0,0.225561]
[1723669574269,0.5070519,59122.0,59121.0,0.225561]
[1723669574472,0.8678519,59122.0,59121.0,0.225561]
[1723669575774,0.8718519,59122.0,59121.0,0.225561]
[1723669577969,0.8718519,59122.0,59121.0,0.141]
[1723669578966,0.5110519,59122.0,59121.0,0.141]
[1723669579178,0.5120519,59122.0,59121.0,0.141]
[1723669579474,0.8678519,59122.0,59121.0,0.141]
[1723669579682,0.8738519,59122.0,59121.0,0.142]
[1723669580268,0.95826842,59122.0,59121.0,0.142]
[1723669580664,0.8738519,59122.0,59121.0,0.142]
[1723669581377,0.95826842,59122.0,59121.0,0.142]
[1723669581875,0.8738519,59122.0,59121.0,0.142]
[1723669582178,0.95126842,59122.0,59121.0,0.19170891]
[1723669582374,0.90326173,59122.0,59121.0,0.142]
[1723669582680,0.8768519,59122.0,59121.0,0.19270891]
[1723669582867,0.96125703,59122.0,59121.0,0.142]
[1723669583579,0.60045703,59122.0,59121.0,0.142]
[1723669583778,0.96125703,59122.0,59121.0,0.142]
[1723669584373,0.60045703,59122.0,59121.0,0.142]
[1723669584676,0.96125703,59122.0,59121.0,0.142]
[1723669585672,0.60045703,59122.0,59121.0,0.142]
[1723669585875,0.96125703,59122.0,59121.0,0.142]
[1723669587577,0.8768519,59122.0,59121.0,0.19272251]
[1723669587780,1.04581218,59122.0,59121.0,0.142]
[1723669587978,0.98882127,59122.0,59121.0,0.192723]
[1723669588181,0.9614109,59122.0,59121.0,0.192723]
[1723669588387,0.9614109,59122.0,59121.0,0.142]
[1723669588578,1.04581519,59122.0,59121.0,0.19272088]
[1723669590480,1.04581519,59122.0,59121.0,0.142]
[1723669592177,0.68501519,59122.0,59121.0,0.142]
[1723669592582,1.04581519,59122.0,59121.0,0.142]
[1723669594869,0.68501519,59122.0,59121.0,0.142]
[1723669595273,1.04581519,59122.0,59121.0,0.142]
[1723669595479,0.68501519,59122.0,59121.0,0.142]
[1723669595687,1.04581519,59122.0,59121.0,0.142]
[1723669596481,1.04582408,59122.0,59121.0,0.142]
[1723669597688,0.68502408,59122.0,59121.0,0.142]
[1723669598086,1.04582408,59122.0,59121.0,0.142]
[1723669601179,0.9614109,59122.0,59121.0,0.142]
[1723669601987,0.98882054,59122.0,59121.0,0.142]
[1723669602188,0.9614109,59122.0,59121.0,0.142]
[1723669603687,0.8314109,59122.0,59121.0,0.142]
[1723669604482,0.91584671,59122.0,59121.0,0.142]
[1723669605787,0.8314109,59122.0,59121.0,0.142]
[1723669605988,0.9158772,59122.0,59121.0,0.142]
[1723669606190,0.8314109,59122.0,59121.0,0.142]
[1723669606580,0.91587866,59122.0,59121.0,0.142]
[1723669607286,0.8314109,59122.0,59121.0,0.142]
[1723669607486,0.91587847,59122.0,59121.0,0.142]
[1723669610203,0.8314109,59122.0,59121.0,0.142]
[1723669610389,0.91593593,59122.0,59121.0,0.142]
[1723669611185,0.91593593,59122.0,59121.0,0.20965082]
[1723669611591,1.02593593,59122.0,59121.0,0.142]
[1723669611790,0.96882004,59122.0,59121.0,0.142]
[1723669612093,0.8314109,59122.0,59121.0,0.142]
[1723669612595,0.85882034,59122.0,59121.0,0.142]
[1723669612887,0.96882034,59122.0,59121.0,0.142]
[1723669613487,0.85882037,59122.0,59121.0,0.142]
[1723669613687,0.96882037,59122.0,59121.0,0.142]
[1723669613987,0.8314109,59122.0,59121.0,0.142]
[1723669614193,0.9788198,59122.0,59121.0,0.142]
[1723669614384,1.03594012,59122.0,59121.0,0.20965082]
[1723669614587,0.8314109,59122.0,59121.0,0.142]
[1723669614983,0.85882046,59122.0,59121.0,0.142]
[1723669615186,0.85882042,59122.0,59121.0,0.142]
[1723669615781,0.91594258,59122.0,59121.0,0.20965082]
[1723669615984,0.85881995,59122.0,59121.0,0.142]
[1723669616586,0.8314109,59122.0,59121.0,0.20965082]
[1723669617087,0.85882038,59122.0,59121.0,0.142]
[1723669617288,0.8314109,59122.0,59121.0,0.20965082]
[1723669617700,0.85882003,59122.0,59121.0,0.142]
[1723669618385,0.8314109,59122.0,59121.0,0.20965082]
[1723669618587,0.5906109,59122.0,59121.0,0.20965082]
[1723669618790,0.5906109,59122.0,59121.0,0.142]
[1723669618791,0.97881999,59122.0,59121.0,0.142]
[1723669619296,0.97882069,59122.0,59121.0,0.142]
[1723669622292,0.61802069,59122.0,59121.0,0.142]
[1723669622493,0.97882069,59122.0,59121.0,0.142]
[1723669622803,0.97882111,59122.0,59121.0,0.142]